bitfinex/quotes_ETHUSD_20241123
["timestamp","ask_amount","ask_price","bid_price","bid_amount"]
[1732357341039,1.0062,3352.7,3352.0,0.03150545]
[1732357341234,0.03728877,3352.6,3352.0,0.03150545]
[1732357341418,1.0062,3352.5,3351.4,0.40518605]
[1732357341621,1.04349222,3352.4,3352.1,0.03148985]
[1732357341824,1.04349222,3352.4,3351.4,0.40518605]
[1732357342536,1.0062,3352.4,3351.5,0.03184961]
[1732357343894,1.0062,3352.4,3351.6,1.0435]
[1732357344205,1.092,3352.8,3351.6,1.07529551]
[1732357344399,1.092,3352.8,3351.7,0.2966]
[1732357344603,1.092,3352.8,3351.8,0.0316692]
[1732357345297,1.092,3352.8,3351.9,35.2966]
[1732357345501,1.092,3352.8,3351.9,35.32812891]
[1732357348049,1.092,3352.8,3351.9,35.03152891]
[1732357348479,1.0067,3352.9,3352.0,3.0]
[1732357348683,1.0067,3352.9,3352.1,1.0435]
[1732357348890,1.0067,3352.9,3352.1,1.07496618]
[1732357349087,1.092,3353.1,3352.1,36.07496618]
[1732357349292,0.03728098,3353.0,3352.1,35.03146618]
[1732357352299,0.03728098,3353.0,3352.1,0.03146618]
[1732357352505,0.03728098,3353.0,3351.9,0.2966]
[1732357352703,0.03728098,3353.0,3352.2,0.03148565]
[1732357353002,0.03728098,3353.0,3352.1,3.0]
[1732357353204,0.03728098,3353.0,3352.3,0.03143173]
[1732357353408,0.03728098,3353.0,3352.2,0.03148565]
[1732357353569,0.03728098,3353.0,3352.4,0.03137782]
[1732357353769,0.03728098,3353.0,3352.1,3.0]
[1732357353770,0.03728098,3353.0,3352.3,0.03143173]
[1732357353994,0.03728098,3353.0,3352.5,0.03132391]
[1732357354221,0.03728098,3353.0,3352.4,0.03143729]
[1732357354516,0.03728098,3353.0,3352.6,0.03132948]
[1732357354668,0.03728098,3353.0,3352.1,3.0]
[1732357355002,1.092,3353.1,3352.7,0.03127557]
[1732357355305,0.03728349,3353.0,3352.8,0.0313565]
[1732357355508,0.03728349,3353.0,3352.1,3.0]
[1732357355807,1.092,3353.1,3352.9,0.03131218]
[1732357356012,1.092,3353.1,3351.9,1.3401]
[1732357356372,1.092,3353.9,3352.1,1.0435]
[1732357356676,1.188462,3353.6,3352.2,0.03176801]
[1732357357203,1.092,3353.5,3352.2,0.03176801]
[1732357357407,1.32377428,3353.5,3352.2,0.03176801]
[1732357357607,1.32377428,3353.5,3352.1,1.0435]
[1732357358105,1.32377428,3353.5,3352.2,0.32836575]
[1732357358309,1.32377428,3353.5,3352.2,0.2966]
[1732357359917,0.74271581,3354.3,3351.4,3.40518605]
[1732357359918,1.092,3353.8,3352.5,0.2966]
[1732357360075,1.092,3353.8,3352.6,1.0435]
[1732357360278,1.092,3353.8,3352.6,1.07514035]
[1732357360593,1.092,3353.8,3352.7,0.2966]
[1732357360991,1.092,3353.8,3352.9,0.2966]
[1732357361383,1.092,3353.8,3353.0,0.03142472]
[1732357363378,1.3087141,3353.8,3353.0,0.03142472]
[1732357365223,1.092,3353.8,3353.0,0.03142472]
[1732357366638,1.0945,3354.1,3353.0,0.03142472]
[1732357366827,1.0945,3354.1,3352.9,0.2966]
[1732357367033,1.0945,3354.1,3353.0,1.3366]
[1732357367330,0.2138,3354.0,3353.0,1.3366]
[1732357367838,0.2138,3354.0,3353.1,1.04]
[1732357368014,2.189,3354.4,3353.2,0.2966]
[1732357368325,2.189,3354.4,3353.3,0.0311433]
[1732357369638,0.03727288,3354.3,3353.3,0.0311433]
[1732357369791,0.22262729,3354.2,3353.3,0.0311433]
[1732357369995,0.03727287,3354.1,3353.3,0.0311433]
[1732357371936,0.22262729,3354.2,3353.3,0.0311433]
[1732357372238,2.189,3354.4,3353.4,1.04]
[1732357372403,1.0945,3354.4,3353.4,1.04]
[1732357372744,1.0945,3354.4,3353.4,1.07094124]
[1732357373246,0.03726893,3354.3,3353.4,1.04]
[1732357375706,1.0945,3354.7,3353.4,1.04]
[1732357376054,2.189,3355.0,3353.4,1.04]
[1732357376234,1.0945,3355.0,3353.4,1.04]
[1732357376742,1.0945,3355.4,3353.8,0.2966]
[1732357376945,0.03726006,3355.3,3353.9,1.3366]
[1732357377118,1.0945,3355.1,3353.9,1.36732175]
[1732357377453,0.6300511,3355.5,3353.9,1.36732175]
[1732357377454,1.0945,3354.9,3353.9,1.07072175]
[1732357377664,1.0945,3354.7,3353.9,0.03072175]
[1732357377867,0.03726881,3354.6,3353.9,0.03072175]
[1732357378040,0.03726881,3354.6,3353.3,0.2966]
[1732357378041,1.0945,3354.5,3354.0,0.02929603]
[1732357378241,1.0945,3354.5,3353.3,1.04]
[1732357378242,0.03727205,3354.4,3353.3,1.3366]
[1732357378557,0.03727205,3354.4,3353.4,0.02961928]
[1732357379859,1.0945,3354.5,3353.4,0.02961928]
[1732357380368,0.03727062,3354.4,3353.4,0.02961928]
[1732357380942,1.0945,3354.2,3353.4,0.02961928]
[1732357381151,0.55,3353.9,3352.7,1.04]
[1732357381319,1.0945,3353.7,3353.5,0.02969625]
[1732357381519,0.03728349,3353.6,3352.2,1.04]
[1732357381757,0.2054617,3353.6,3352.2,1.04]
[1732357382942,0.2054617,3353.6,3352.3,0.02905775]
[1732357383546,1.13178359,3353.7,3352.3,0.02905775]
[1732357384070,0.03728359,3353.6,3352.3,0.02905775]
[1732357384433,1.0903,3354.5,3352.4,1.0435]
[1732357384762,0.58727675,3354.4,3352.5,0.02895111]
[1732357384958,0.16775768,3354.3,3352.5,0.02895111]
[1732357385127,0.03727675,3354.2,3352.5,0.02895111]
[1732357385552,0.03727675,3354.2,3352.6,0.22179875]
[1732357385738,0.03727675,3354.2,3352.7,0.22179875]
[1732357385939,0.22181019,3354.2,3352.8,0.22179875]
[1732357386171,0.22181019,3354.2,3352.9,0.22179875]
[1732357386367,1.0266,3354.1,3352.9,0.22179875]
[1732357386693,0.03727792,3354.0,3352.9,0.22179875]
[1732357386862,0.03727792,3354.0,3353.1,1.0435]
[1732357387442,0.03727792,3354.0,3353.2,0.02859143]
[1732357387970,0.03727792,3354.0,3352.8,1.0435]
[1732357388175,0.03727792,3354.0,3352.9,0.2966]
[1732357388344,0.03727792,3354.0,3352.9,0.32541082]
[1732357388786,1.5766,3353.9,3352.9,0.32541082]
[1732357388995,1.0266,3353.7,3352.9,0.02881082]
[1732357389173,0.03728475,3353.6,3352.9,0.02881082]
[1732357389483,0.03728475,3353.6,3352.4,1.0435]
[1732357389667,0.03728475,3353.6,3353.0,0.02889637]
[1732357390068,0.03728475,3353.6,3352.4,1.0435]
[1732357390267,0.03728475,3353.6,3353.1,0.02882256]
[1732357390469,0.03728475,3353.6,3352.4,1.0435]
[1732357390977,1.0266,3353.5,3352.5,0.02914602]
[1732357391152,0.03728481,3353.4,3352.5,0.02914602]
[1732357391343,0.55,3353.2,3352.1,1.3401]
[1732357391544,0.19867844,3353.1,3352.6,0.02908556]
[1732357391782,0.19867844,3353.1,3352.1,1.3401]
[1732357391945,0.19867844,3353.1,3352.7,0.02910469]
[1732357392140,0.55,3352.9,3351.6,0.2966]
[1732357392363,1.0266,3352.7,3351.6,0.2966]
[1732357392579,0.03729352,3352.6,3351.6,0.2966]
[1732357392962,0.03729352,3352.6,3351.5,1.0435]
[1732357393263,0.19868287,3352.6,3351.5,1.0435]
[1732357394153,0.19868287,3352.6,3351.4,0.40518605]
[1732357396163,0.0372957,3352.5,3351.4,0.40518605]
[1732357397785,1.0266,3352.4,3351.4,0.40518605]
[1732357397986,0.03729644,3352.3,3351.5,0.02974478]
[1732357398891,1.0266,3352.4,3351.5,0.02974478]
[1732357400054,0.03729341,3352.3,3351.5,0.02974478]
[1732357401491,1.0266,3352.4,3351.5,0.02974478]
[1732357402980,1.0153,3353.2,3351.6,1.0108]
[1732357403186,1.0153,3353.2,3351.9,1.0108]
[1732357403402,1.0153,3353.2,3352.2,0.2966]
[1732357403589,0.19035895,3353.1,3352.2,0.2966]
[1732357404424,1.0153,3353.2,3352.2,0.2966]
[1732357404626,1.0153,3354.1,3352.3,0.02984731]
[1732357404800,0.03728148,3354.0,3352.3,0.02984731]
[1732357405001,0.03728148,3354.0,3352.4,1.0108]
[1732357405399,0.16919542,3353.9,3352.4,1.0108]
[1732357405600,0.0372815,3353.8,3352.4,1.0108]
[1732357406485,1.0153,3353.7,3352.4,1.0108]
[1732357406769,0.03728152,3353.6,3352.4,1.0108]
[1732357407988,1.0153,3353.5,3352.4,1.0108]
[1732357408190,0.03728364,3353.4,3352.4,1.0108]
[1732357408391,0.03728364,3353.4,3351.9,1.0108]
[1732357408591,0.03728364,3353.4,3352.0,0.25155576]
[1732357408796,0.03728364,3353.4,3352.1,0.22157977]
[1732357408998,0.03728364,3353.4,3352.2,0.02983297]
[1732357409403,0.03728364,3353.4,3351.9,1.0108]
[1732357409614,1.0153,3353.3,3352.3,0.02974065]
[1732357409830,0.03728735,3353.2,3351.9,1.0108]
[1732357410030,1.0153,3353.1,3352.4,0.02964834]
[1732357410232,0.03729022,3353.0,3351.9,1.0108]
[1732357410601,1.0153,3352.9,3352.0,0.02988184]
[1732357410831,0.58729489,3352.8,3352.0,0.02988184]
[1732357411147,0.16025949,3352.7,3352.1,0.02982789]
[1732357411444,0.16025949,3352.7,3351.6,1.0108]
[1732357411445,0.19755438,3352.7,3351.6,1.0108]
[1732357411655,0.19755438,3352.7,3352.2,0.02977395]
[1732357411941,0.17628544,3352.6,3351.6,1.0108]
[1732357412435,0.03729357,3352.5,3351.7,0.03002379]
[1732357412933,1.0153,3352.9,3351.7,0.03002379]
[1732357413338,0.03728863,3352.8,3351.7,0.03002379]
[1732357413503,1.05258863,3352.9,3351.7,0.03002379]
[1732357413704,1.1791288,3352.9,3351.7,0.03002379]
[1732357413950,1.0153,3352.9,3351.8,1.0108]
[1732357414266,0.03728652,3352.8,3351.8,0.94039921]
[1732357414449,1.0153,3352.9,3351.9,0.03067568]
[1732357417556,0.16493567,3352.8,3351.9,0.03067568]
[1732357418073,0.16493567,3352.8,3351.9,0.32727568]
[1732357421229,1.05258639,3352.7,3351.9,0.03067568]
[1732357421828,1.05258639,3352.7,3352.0,0.0304799]
[1732357422142,1.05258639,3352.7,3351.4,0.70178605]
[1732357422461,1.05258639,3352.7,3351.5,0.03077001]
[1732357423772,1.67384431,3352.7,3351.5,0.03077001]
[1732357423975,1.0274,3352.5,3351.5,0.03077001]
[1732357424268,1.0274,3352.3,3351.5,0.03077001]
[1732357424470,0.03729433,3352.2,3351.5,0.03077001]
[1732357427641,1.06469625,3352.3,3351.5,0.03077001]
[1732357428583,1.0274,3352.3,3351.5,0.03077001]
[1732357429379,0.03729625,3352.2,3351.5,0.03077001]
[1732357430351,1.0274,3352.1,3351.5,0.03077001]
[1732357430553,1.0274,3351.9,3351.5,0.03077001]
[1732357430875,0.03729738,3351.8,3351.5,0.03077001]
[1732357431253,1.0274,3351.7,3351.5,0.03077001]
[1732357432687,0.03730263,3351.6,3351.5,0.03077001]
[1732357432877,1.06470263,3351.6,3351.5,0.03077001]
[1732357433079,1.23560942,3351.6,3351.5,0.03077001]
[1732357433254,1.23560942,3351.6,3351.4,0.40518605]
[1732357434094,0.55,3351.5,3351.4,0.40518605]
[1732357434266,1.5189,3351.5,3351.4,0.40518605]
[1732357434468,0.9689,3351.4,3350.0,1.1472]
[1732357434673,0.9689,3351.2,3350.0,1.1472]
[1732357434864,0.03731204,3351.1,3350.1,0.03118012]
[1732357435201,0.03731205,3351.1,3350.0,1.1472]
[1732357435508,0.9689,3351.0,3350.0,1.1472]
[1732357435686,0.03730997,3350.9,3350.0,1.1472]
[1732357435853,0.03730997,3350.9,3349.2,0.2966]
[1732357436059,0.20019711,3350.9,3349.4,0.2966]
[1732357436369,0.9689,3350.8,3349.5,0.03154658]
[1732357436578,0.0373124,3350.7,3349.5,0.03154658]
[1732357438899,0.9689,3350.6,3349.5,0.03154658]
[1732357439211,0.03731249,3350.5,3349.5,0.03154658]
[1732357439767,0.9689,3351.0,3349.6,0.8506]
[1732357440062,0.0373109,3350.9,3349.7,0.02941461]
[1732357440499,0.9689,3351.0,3349.7,0.02941461]
[1732357442723,0.9689,3352.0,3350.0,0.8506]
[1732357443022,0.9689,3351.8,3350.1,0.8506]
[1732357443173,1.0703,3351.6,3350.1,0.8506]
[1732357443377,0.03730158,3351.5,3350.1,0.8506]
[1732357443907,1.0703,3351.6,3350.1,0.8506]
[1732357444422,1.0703,3351.6,3350.2,0.2966]
[1732357444577,1.0703,3351.6,3350.3,0.03067125]
[1732357444778,0.03730158,3351.5,3350.3,0.03067125]
[1732357445179,0.03730158,3351.5,3350.2,0.2966]
[1732357446009,1.0703,3351.9,3350.2,0.2966]
[1732357446211,1.0703,3351.7,3350.2,0.2966]
[1732357446532,1.10760336,3351.6,3350.2,0.2966]
[1732357446841,1.0703,3351.6,3349.9,0.2966]
[1732357446988,1.0703,3351.6,3350.1,0.2966]
[1732357447193,0.0373006,3351.5,3350.2,0.03078826]
[1732357447825,0.03730061,3351.5,3350.2,0.03078826]
[1732357449932,1.0703,3351.4,3350.2,0.03078826]
[1732357450517,1.0703,3351.4,3350.4,0.2966]
[1732357451040,1.0703,3351.4,3350.5,0.03076287]
[1732357451551,1.0703,3351.2,3350.5,0.03076287]
[1732357451909,0.03730071,3351.1,3350.5,0.03076287]
[1732357452132,1.0703,3351.0,3350.5,0.03076287]
[1732357452335,1.10760825,3350.9,3350.0,0.2966]
[1732357452634,1.0703,3350.9,3350.0,0.2966]
[1732357452798,1.0703,3350.9,3350.1,0.03103024]
[1732357453001,1.0703,3350.9,3349.6,0.2966]
[1732357453236,1.0703,3350.9,3349.7,0.03126161]
[1732357454840,1.0703,3350.7,3349.7,0.03126161]
[1732357455908,1.1076125,3350.6,3349.7,0.03126161]
[1732357456130,1.1076125,3350.6,3349.2,1.1472]
[1732357456330,1.1076125,3350.6,3349.8,0.03119997]
[1732357456646,1.1076125,3350.6,3349.9,0.03114213]
[1732357456800,1.1076125,3350.6,3349.2,1.1472]
[1732357457008,1.1076125,3350.6,3349.3,0.03148924]
[1732357457208,1.0703,3350.6,3349.3,0.03148924]
[1732357457440,1.0703,3350.6,3349.2,1.1472]
[1732357458322,1.0703,3350.6,3349.4,0.2966]
[1732357458741,1.0703,3350.6,3349.6,0.2966]
[1732357459224,0.0373091,3350.5,3349.7,0.03133037]
[1732357459464,0.03730949,3350.5,3349.7,0.03133037]
[1732357459789,1.0703,3350.4,3349.7,0.03133037]
[1732357459989,1.10761464,3350.3,3349.2,0.2969]
[1732357460148,1.10761464,3350.3,3349.3,0.03157814]
[1732357460978,1.10761464,3350.3,3349.0,0.2969]
[1732357461154,1.10761464,3350.3,3349.1,0.03169387]
[1732357461857,1.0703,3350.3,3349.1,0.03169387]
[1732357462875,1.0703,3350.3,3349.2,0.2969]
[1732357463206,1.0703,3350.3,3349.3,0.03157814]
[1732357465562,1.00431294,3350.2,3349.3,0.03157814]
[1732357465801,1.00431294,3350.2,3349.0,0.2969]
[1732357466000,1.00431294,3350.2,3349.4,0.0315376]
[1732357466200,1.00431294,3350.2,3349.0,0.2969]
[1732357466406,1.00431294,3350.2,3349.5,0.03147974]
[1732357466705,1.00431294,3350.2,3349.0,0.2969]
[1732357466960,1.00431294,3350.2,3349.6,0.03142188]
[1732357467092,1.00431294,3350.2,3349.0,0.2969]
[1732357467280,1.00431294,3350.2,3349.7,0.03136403]
[1732357467483,1.00431294,3350.2,3349.0,0.2969]
[1732357467884,1.00431294,3350.2,3349.1,0.03171119]
[1732357469302,0.967,3350.0,3349.1,0.03171119]
[1732357471676,0.967,3349.8,3349.1,0.03171119]
[1732357471887,0.967,3349.8,3348.4,1.1486]
[1732357472101,0.967,3349.7,3349.2,0.03153466]
[1732357472303,0.967,3349.7,3348.4,1.1486]
[1732357472733,0.967,3349.5,3348.5,0.32739622]
[1732357473092,0.967,3349.3,3348.5,0.32739622]
[1732357473293,0.967,3349.3,3348.5,0.03049622]
[1732357473491,0.967,3349.3,3348.2,0.2969]
[1732357473725,0.967,3349.3,3348.6,0.03229317]
[1732357473891,0.967,3349.3,3348.0,0.2969]
[1732357474625,1.00432643,3349.2,3347.7,0.2969]
[1732357474823,1.00432643,3349.2,3347.7,0.31183745]
[1732357475336,1.00432643,3349.2,3347.7,0.2969]
[1732357475758,1.00432643,3349.2,3347.4,0.86664271]
[1732357475759,1.00432643,3349.2,3347.5,0.2969]
[1732357476426,1.00432643,3349.2,3347.0,0.2969]
[1732357476621,1.00432643,3349.2,3347.2,0.2969]
[1732357477362,1.00432643,3349.2,3347.2,0.31184546]
[1732357477947,1.00432643,3349.2,3347.2,0.01494546]
[1732357479423,0.967,3349.2,3347.3,0.55]
[1732357479657,0.9994,3349.0,3347.4,0.01493845]
[1732357479860,0.9994,3348.8,3347.4,0.01493845]
[1732357481849,0.9994,3348.8,3347.5,1.1486]
[1732357482096,0.9994,3348.8,3347.6,0.8469]
[1732357482865,0.9994,3348.8,3347.8,0.55]
[1732357483101,0.9994,3348.8,3347.9,0.2969]
[1732357483403,0.9994,3348.8,3348.0,0.55]
[1732357484204,0.9994,3348.8,3348.1,0.2969]
[1732357485062,0.9994,3348.8,3348.0,0.2969]
[1732357485303,1.0069,3349.8,3348.1,1.1486]
[1732357485812,1.0069,3349.8,3348.3,0.2969]
[1732357486407,1.0069,3349.8,3348.4,0.55]
[1732357486877,1.0069,3349.8,3348.5,1.1486]
[1732357487101,1.0069,3349.8,3348.8,0.55]
[1732357488114,1.0069,3349.8,3348.8,0.8469]
[1732357500654,1.0069,3349.8,3348.5,0.2969]
[1732357500864,1.0069,3349.8,3348.7,0.2969]
[1732357501291,1.0568,3349.6,3348.7,0.2969]
[1732357501444,1.0568,3349.4,3348.7,0.2969]
[1732357501972,1.0568,3349.4,3348.0,0.2969]
[1732357502783,1.0568,3349.4,3348.4,0.2969]
[1732357503082,0.62684033,3349.6,3348.4,0.2969]
[1732357503083,1.26248668,3349.3,3348.4,0.2969]
[1732357503289,1.09412265,3349.3,3348.4,0.2969]
[1732357503746,1.09412265,3349.3,3347.7,0.2969]
[1732357504083,1.0568,3349.3,3347.7,0.2969]
[1732357504293,1.0568,3349.3,3347.9,0.2969]
[1732357504493,1.0568,3349.3,3348.1,0.2969]
[1732357504786,1.0568,3349.3,3348.5,0.2969]
[1732357505771,1.0568,3349.3,3348.3,0.2969]
[1732357507781,1.0568,3349.3,3348.5,0.2969]
[1732357510082,0.03731894,3350.7,3348.7,0.2969]
[1732357510291,0.03731894,3350.7,3348.6,0.55]
[1732357510292,1.0746,3349.6,3348.9,0.2969]
[1732357511049,1.0746,3349.6,3349.1,0.2969]
[1732357511386,1.0746,3349.6,3349.3,0.2969]
[1732357512580,1.0746,3349.6,3348.9,0.2969]
[1732357513495,1.0746,3349.6,3349.1,0.2969]
[1732357514091,1.0746,3349.6,3349.3,0.2969]
[1732357514251,0.9965,3350.8,3349.3,0.2969]
[1732357514458,1.16294898,3350.8,3349.5,0.2969]
[1732357514787,0.9965,3350.8,3349.5,0.2969]
[1732357515549,0.9965,3350.8,3349.4,0.2969]
[1732357516572,0.9965,3350.6,3349.4,0.2969]
[1732357517274,0.9965,3350.6,3349.0,0.2969]
[1732357517588,0.9965,3350.4,3349.4,0.2969]
[1732357518610,0.9965,3350.4,3349.5,0.2969]
[1732357519479,0.9965,3350.4,3349.2,0.2969]
[1732357519681,0.9965,3350.4,3349.2,3.2969]
[1732357520219,0.9965,3350.2,3349.2,3.2969]
[1732357520507,0.9965,3350.2,3349.2,0.2969]
[1732357520696,0.9965,3350.2,3349.3,0.2969]
[1732357521613,0.9965,3350.2,3349.4,0.2969]
[1732357522576,0.9965,3350.2,3349.2,3.0]
[1732357522577,0.9965,3350.2,3349.3,0.2969]
[1732357522812,0.9965,3350.2,3349.5,0.2969]
[1732357523823,0.9965,3350.2,3349.2,0.2969]
[1732357524178,0.9965,3350.2,3349.4,0.2969]
[1732357524585,0.03731233,3350.1,3349.4,0.2969]
[1732357524792,1.0161,3350.0,3349.4,0.2969]
[1732357525181,1.0161,3350.0,3348.5,0.2969]
[1732357525621,1.0161,3349.8,3348.5,0.2969]
[1732357525781,1.05341925,3349.7,3348.5,0.2969]
[1732357526210,1.05341925,3349.7,3348.2,0.2969]
[1732357527024,1.05341925,3349.7,3348.4,0.2969]
[1732357527208,1.0161,3349.7,3348.4,0.2969]
[1732357531485,1.05342042,3349.6,3348.4,0.2969]
[1732357532829,1.05342042,3349.6,3348.3,0.2969]
[1732357533191,1.0161,3349.6,3348.3,0.2969]
[1732357534398,1.0161,3349.5,3348.3,0.2969]
[1732357534730,1.0161,3349.4,3348.3,0.2969]
[1732357535223,1.0161,3349.4,3348.1,0.2969]
[1732357536028,1.0161,3349.4,3348.0,0.55]
[1732357536029,1.0161,3349.4,3348.3,0.2969]
[1732357536326,1.0161,3349.4,3348.3,1.1527]
[1732357536625,0.1,3351.0,3349.1,0.2969]
[1732357536626,1.0161,3350.9,3349.1,0.2969]
[1732357536827,1.0161,3350.7,3349.2,0.8469]
[1732357538424,1.0161,3350.5,3349.2,0.8469]
[1732357538631,1.05341029,3350.4,3349.2,0.8469]
[1732357538990,1.05341029,3350.4,3349.0,0.2969]
[1732357539594,1.0161,3350.4,3349.0,0.2969]
[1732357539798,1.05341282,3350.3,3349.0,0.2969]
[1732357540713,1.0161,3350.3,3349.0,0.2969]
[1732357542532,1.0161,3350.3,3348.8,0.2969]
[1732357546526,0.983,3350.1,3348.8,0.2969]
[1732357546720,0.983,3350.1,3348.9,0.2969]
[1732357547037,0.983,3349.9,3348.9,0.2969]
[1732357547202,0.983,3349.8,3348.9,0.2969]
[1732357547936,0.983,3349.8,3349.0,0.2969]
[1732357548843,0.983,3349.8,3348.8,0.2969]
[1732357550645,0.983,3349.8,3349.0,0.2969]
[1732357550807,0.983,3349.8,3349.2,0.2969]
[1732357551144,0.983,3349.8,3349.2,2.18713912]
[1732357551332,0.983,3349.8,3349.2,0.2969]
[1732357551713,0.983,3349.8,3349.1,3.0]
[1732357551714,0.983,3349.8,3349.1,0.2969]
[1732357552626,0.983,3350.1,3349.3,0.2969]
[1732357552835,0.983,3351.5,3350.1,0.2969]
[1732357552836,0.983,3351.2,3350.1,0.2969]
[1732357556448,0.983,3351.2,3350.3,2.18713912]
[1732357556608,0.983,3351.2,3350.5,0.2969]
[1732357557821,1.0623,3353.2,3350.7,0.2969]
[1732357558057,1.0623,3353.0,3350.7,0.2969]
[1732357558211,1.0623,3353.0,3350.8,0.55]
[1732357558409,1.09959013,3352.9,3350.8,0.55]
[1732357558614,1.09959013,3352.9,3350.9,1.89023912]
[1732357559725,1.0623,3352.9,3351.1,0.55]
[1732357560113,0.03728685,3352.8,3351.1,0.8469]
[1732357560320,1.0623,3353.1,3351.1,0.8469]
[1732357560510,1.0623,3352.9,3351.1,0.8469]
[1732357560718,1.0623,3352.7,3351.1,0.2969]
[1732357561056,1.0623,3352.5,3350.9,1.89023912]
[1732357561355,1.0623,3352.5,3351.2,0.8459]
[1732357562274,0.03728716,3352.4,3350.5,0.2969]
[1732357562412,1.0623,3352.3,3351.0,0.2969]
[1732357565935,1.0623,3352.3,3350.9,0.2969]
[1732357566136,1.0623,3352.3,3350.8,3.37953068]
[1732357566137,1.0623,3352.3,3351.0,0.8469]
[1732357566519,1.0623,3352.3,3351.1,0.8459]
[1732357566733,1.0623,3352.3,3351.1,1.1428]
[1732357569158,1.0623,3352.3,3351.1,0.2969]
[1732357572728,1.0623,3352.3,3351.3,0.2969]
[1732357572930,1.0623,3352.3,3351.6,0.2969]
[1732357573140,1.0623,3352.3,3351.8,0.2969]
[1732357574268,1.0623,3352.3,3351.2,0.2969]
[1732357576056,1.0623,3352.3,3351.2,3.67643068]
[1732357577270,1.0623,3352.3,3351.4,0.2969]
[1732357577574,1.0623,3352.3,3351.6,0.2969]
[1732357577871,0.9847,3353.8,3351.8,0.2969]
[1732357578241,1.02197726,3353.7,3352.0,0.2969]
[1732357579236,0.9847,3353.3,3351.2,0.2969]
[1732357579434,0.9847,3353.1,3351.2,0.2969]
[1732357579704,0.9847,3352.9,3351.2,0.2969]
[1732357579844,0.9847,3352.7,3351.2,0.2969]
[1732357580059,1.02198626,3352.6,3351.2,0.2969]
[1732357580267,1.02198626,3352.6,3350.9,0.2969]
[1732357581441,0.9847,3352.6,3350.5,0.2969]
[1732357581641,0.9847,3352.6,3350.4,0.8456]
[1732357581642,0.9847,3352.6,3350.7,0.2969]
[1732357581881,0.9847,3352.6,3350.7,0.67643068]
[1732357582748,0.9847,3352.6,3351.2,0.2969]
[1732357583791,0.9847,3352.6,3351.4,0.2969]
[1732357587089,0.9847,3352.6,3351.6,0.2969]
[1732357587764,0.9847,3352.6,3351.6,5.5666698]
[1732357587962,0.9847,3352.6,3351.8,0.2969]
[1732357588355,0.9847,3352.6,3351.8,0.67643068]
[1732357588564,0.9847,3352.6,3351.8,0.2969]
[1732357589085,0.9847,3352.6,3351.9,0.2969]
[1732357589971,0.9847,3352.6,3352.0,0.2969]
[1732357591073,0.9847,3352.6,3351.2,0.2969]
[1732357592060,1.0175,3352.4,3350.9,0.2969]
[1732357592363,1.05479234,3352.3,3350.9,0.2969]
[1732357592997,1.05479234,3352.3,3350.3,0.69807402]
[1732357592998,1.05479234,3352.3,3350.4,0.2969]
[1732357594071,1.0175,3352.3,3350.4,0.2969]
[1732357594400,1.0175,3352.3,3350.5,0.67643068]
[1732357595698,1.0175,3352.3,3350.9,0.2969]
[1732357598512,1.0175,3352.3,3351.1,0.2969]
[1732357599586,1.0175,3352.3,3350.9,0.2969]
[1732357600177,1.0175,3352.3,3351.1,0.2969]
[1732357601107,1.0175,3352.3,3351.3,0.2969]
[1732357602259,1.0175,3352.3,3351.2,0.2969]
[1732357603075,1.063,3352.1,3351.2,0.2969]
[1732357603426,1.063,3352.1,3351.3,0.2969]
[1732357604300,1.063,3352.1,3350.6,0.2969]
[1732357604489,0.03729251,3353.3,3350.6,0.2969]
[1732357604490,0.994,3351.9,3350.6,0.2969]
[1732357604690,0.994,3351.7,3350.6,0.2969]
[1732357605423,0.994,3351.7,3350.2,0.2969]
[1732357605841,0.994,3351.7,3350.2,0.67643068]
[1732357606019,0.994,3351.7,3350.4,0.2969]
[1732357606218,0.994,3351.7,3350.4,0.67643068]
[1732357606530,0.994,3351.7,3350.1,3.0]
[1732357606531,0.994,3351.7,3350.6,0.2969]
[1732357608996,0.994,3351.7,3350.8,0.2969]
[1732357610350,0.994,3351.7,3350.9,0.2969]
[1732357610500,0.994,3351.7,3350.9,3.2969]
[1732357610704,0.994,3351.7,3351.1,1.1425]
[1732357610900,0.994,3351.7,3351.1,0.2969]
[1732357611320,0.994,3351.7,3350.6,0.2969]
[1732357611740,0.994,3351.7,3350.1,0.2969]
[1732357612723,0.994,3351.7,3350.1,3.2969]
[1732357613028,0.994,3351.5,3350.1,3.2969]
[1732357614941,0.994,3351.5,3350.5,0.2969]
[1732357617216,0.994,3351.5,3350.3,0.2969]
[1732357617762,0.994,3351.5,3350.5,0.2969]
[1732357618747,0.994,3351.5,3350.4,0.2969]
[1732357619943,0.994,3351.5,3349.8,0.37953068]
[1732357619944,0.994,3351.5,3349.9,0.2969]
[1732357620153,0.994,3351.5,3350.1,0.2969]
[1732357620420,0.994,3351.5,3350.3,0.2969]
[1732357621053,1.03449921,3351.4,3350.3,0.2969]
[1732357621446,1.03449921,3351.4,3349.2,1.89023912]
[1732357621447,1.03449921,3351.4,3349.3,0.2969]
[1732357622163,0.9972,3351.2,3349.3,0.2969]
[1732357622362,0.9972,3351.0,3349.3,0.2969]
[1732357622531,0.9972,3350.8,3348.9,0.2969]
[1732357622735,1.03451118,3350.7,3348.9,0.2969]
[1732357622928,0.9972,3350.7,3348.9,0.67643068]
[1732357623423,0.9972,3350.7,3349.1,0.2969]
[1732357623664,0.9972,3350.7,3349.3,3.2969]
[1732357623852,0.9972,3350.7,3349.5,0.2969]
[1732357625681,0.9972,3350.7,3349.1,0.8456]
[1732357625682,0.55,3350.4,3347.6,0.8456]
[1732357625859,1.07292105,3350.3,3347.6,0.8456]
[1732357626031,1.0356,3350.1,3347.6,0.8456]
[1732357626237,1.07292117,3350.0,3347.6,0.8456]
[1732357626663,1.07292117,3350.0,3347.7,0.2969]
[1732357627834,1.07292117,3350.0,3347.9,0.2969]
[1732357628257,1.07292117,3350.0,3348.0,0.8469]